Workbook

Sheet пример
A2: s | B2: v | C2: t | D2: res | E2: до | F2: s2 | G2: v2 | H2: низ | I2: s3 | J2: v3 | K2: после | L2: s4 | M2: v4
A3: =IFERROR(A2+Таблица4[[#This Row],[до]]*10-(B2+Таблица4[[#This Row],[до]])*Таблица4[[#This Row],[низ]]+Таблица4[[#This Row],[после]]*10,100) -> 100 | B3: =IFERROR(B2+Таблица4[[#This Row],[до]]+Таблица4[[#This Row],[после]],10) -> 10 | C3: =Таблица4[[#This Row],[низ]] -> 0 | D3: =IF(Таблица4[[#This Row],[низ]]<>0,"да","нет") -> нет | F3: =IFERROR(A2+Таблица4[[#This Row],[до]]*10,"") ->  | G3: =IFERROR(B2+Таблица4[[#This Row],[до]],"") ->  | I3: =IF(Таблица4[[#This Row],[низ]]=0,Таблица4[[#This Row],[s2]],(Таблица4[[#This Row],[s2]]-Таблица4[[#This Row],[v2]])*Таблица4[[#This Row],[низ]]) ->  | J3: =Таблица4[[#This Row],[v2]] ->  | L3: =IFERROR(Таблица4[[#This Row],[s3]]+Таблица4[[#This Row],[после]]*10,"") ->  | M3: =IFERROR(Таблица4[[#This Row],[v3]]+Таблица4[[#This Row],[после]],"") -> 
A4: =IFERROR(A3+Таблица4[[#This Row],[до]]*10-(B3+Таблица4[[#This Row],[до]])*Таблица4[[#This Row],[низ]]+Таблица4[[#This Row],[после]]*10,100) -> 138 | B4: =IFERROR(B3+Таблица4[[#This Row],[до]]+Таблица4[[#This Row],[после]],10) -> 15 | C4: =Таблица4[[#This Row],[низ]] -> 1 | D4: =IF(Таблица4[[#This Row],[низ]]<>0,"да","нет") -> да | E4: 2 | F4: =IFERROR(A3+Таблица4[[#This Row],[до]]*10,"") -> 120 | G4: =IFERROR(B3+Таблица4[[#This Row],[до]],"") -> 12 | H4: 1 | I4: =IF(Таблица4[[#This Row],[низ]]=0,Таблица4[[#This Row],[s2]],(Таблица4[[#This Row],[s2]]-Таблица4[[#This Row],[v2]])*Таблица4[[#This Row],[низ]]) -> 108 | J4: =Таблица4[[#This Row],[v2]] -> 12 | K4: 3 | L4: =IFERROR(Таблица4[[#This Row],[s3]]+Таблица4[[#This Row],[после]]*10,"") -> 138 | M4: =IFERROR(Таблица4[[#This Row],[v3]]+Таблица4[[#This Row],[после]],"") -> 15
A5: =IFERROR(A4+Таблица4[[#This Row],[до]]*10-(B4+Таблица4[[#This Row],[до]])*Таблица4[[#This Row],[низ]]+Таблица4[[#This Row],[после]]*10,100) -> 148 | B5: =IFERROR(B4+Таблица4[[#This Row],[до]]+Таблица4[[#This Row],[после]],10) -> 16 | C5: =Таблица4[[#This Row],[низ]] -> 0 | D5: =IF(Таблица4[[#This Row],[низ]]<>0,"да","нет") -> нет | E5: 1 | F5: =IFERROR(A4+Таблица4[[#This Row],[до]]*10,"") -> 148 | G5: =IFERROR(B4+Таблица4[[#This Row],[до]],"") -> 16 | I5: =IF(Таблица4[[#This Row],[низ]]=0,Таблица4[[#This Row],[s2]],(Таблица4[[#This Row],[s2]]-Таблица4[[#This Row],[v2]])*Таблица4[[#This Row],[низ]]) -> 148 | J5: =Таблица4[[#This Row],[v2]] -> 16 | L5: =IFERROR(Таблица4[[#This Row],[s3]]+Таблица4[[#This Row],[после]]*10,"") -> 148 | M5: =IFERROR(Таблица4[[#This Row],[v3]]+Таблица4[[#This Row],[после]],"") -> 16 | O5: Тут калькулятор, как это работает.
A6: =IFERROR(A5+Таблица4[[#This Row],[до]]*10-(B5+Таблица4[[#This Row],[до]])*Таблица4[[#This Row],[низ]]+Таблица4[[#This Row],[после]]*10,100) -> 141 | B6: =IFERROR(B5+Таблица4[[#This Row],[до]]+Таблица4[[#This Row],[после]],10) -> 17 | C6: =Таблица4[[#This Row],[низ]] -> 1 | D6: =IF(Таблица4[[#This Row],[низ]]<>0,"да","нет") -> да | E6: 1 | F6: =IFERROR(A5+Таблица4[[#This Row],[до]]*10,"") -> 158 | G6: =IFERROR(B5+Таблица4[[#This Row],[до]],"") -> 17 | H6: 1 | I6: =IF(Таблица4[[#This Row],[низ]]=0,Таблица4[[#This Row],[s2]],(Таблица4[[#This Row],[s2]]-Таблица4[[#This Row],[v2]])*Таблица4[[#This Row],[низ]]) -> 141 | J6: =Таблица4[[#This Row],[v2]] -> 17 | L6: =IFERROR(Таблица4[[#This Row],[s3]]+Таблица4[[#This Row],[после]]*10,"") -> 141 | M6: =IFERROR(Таблица4[[#This Row],[v3]]+Таблица4[[#This Row],[после]],"") -> 17
A7: =IFERROR(A6+Таблица4[[#This Row],[до]]*10-(B6+Таблица4[[#This Row],[до]])*Таблица4[[#This Row],[низ]]+Таблица4[[#This Row],[после]]*10,100) -> 124 | B7: =IFERROR(B6+Таблица4[[#This Row],[до]]+Таблица4[[#This Row],[после]],10) -> 17 | C7: =Таблица4[[#This Row],[низ]] -> 1 | D7: =IF(Таблица4[[#This Row],[низ]]<>0,"да","нет") -> да | F7: =IFERROR(A6+Таблица4[[#This Row],[до]]*10,"") -> 141 | G7: =IFERROR(B6+Таблица4[[#This Row],[до]],"") -> 17 | H7: 1 | I7: =IF(Таблица4[[#This Row],[низ]]=0,Таблица4[[#This Row],[s2]],(Таблица4[[#This Row],[s2]]-Таблица4[[#This Row],[v2]])*Таблица4[[#This Row],[низ]]) -> 124 | J7: =Таблица4[[#This Row],[v2]] -> 17 | L7: =IFERROR(Таблица4[[#This Row],[s3]]+Таблица4[[#This Row],[после]]*10,"") -> 124 | M7: =IFERROR(Таблица4[[#This Row],[v3]]+Таблица4[[#This Row],[после]],"") -> 17
A8: =IFERROR(A7+Таблица4[[#This Row],[до]]*10-(B7+Таблица4[[#This Row],[до]])*Таблица4[[#This Row],[низ]]+Таблица4[[#This Row],[после]]*10,100) -> 146 | B8: =IFERROR(B7+Таблица4[[#This Row],[до]]+Таблица4[[#This Row],[после]],10) -> 21 | C8: =Таблица4[[#This Row],[низ]] -> 1 | D8: =IF(Таблица4[[#This Row],[низ]]<>0,"да","нет") -> да | E8: 1 | F8: =IFERROR(A7+Таблица4[[#This Row],[до]]*10,"") -> 134 | G8: =IFERROR(B7+Таблица4[[#This Row],[до]],"") -> 18 | H8: 1 | I8: =IF(Таблица4[[#This Row],[низ]]=0,Таблица4[[#This Row],[s2]],(Таблица4[[#This Row],[s2]]-Таблица4[[#This Row],[v2]])*Таблица4[[#This Row],[низ]]) -> 116 | J8: =Таблица4[[#This Row],[v2]] -> 18 | K8: 3 | L8: =IFERROR(Таблица4[[#This Row],[s3]]+Таблица4[[#This Row],[после]]*10,"") -> 146 | M8: =IFERROR(Таблица4[[#This Row],[v3]]+Таблица4[[#This Row],[после]],"") -> 21
A9: =IFERROR(A8+Таблица4[[#This Row],[до]]*10-(B8+Таблица4[[#This Row],[до]])*Таблица4[[#This Row],[низ]]+Таблица4[[#This Row],[после]]*10,100) -> 125 | B9: =IFERROR(B8+Таблица4[[#This Row],[до]]+Таблица4[[#This Row],[после]],10) -> 21 | C9: =Таблица4[[#This Row],[низ]] -> 1 | D9: =IF(Таблица4[[#This Row],[низ]]<>0,"да","нет") -> да | F9: =IFERROR(A8+Таблица4[[#This Row],[до]]*10,"") -> 146 | G9: =IFERROR(B8+Таблица4[[#This Row],[до]],"") -> 21 | H9: 1 | I9: =IF(Таблица4[[#This Row],[низ]]=0,Таблица4[[#This Row],[s2]],(Таблица4[[#This Row],[s2]]-Таблица4[[#This Row],[v2]])*Таблица4[[#This Row],[низ]]) -> 125 | J9: =Таблица4[[#This Row],[v2]] -> 21 | L9: =IFERROR(Таблица4[[#This Row],[s3]]+Таблица4[[#This Row],[после]]*10,"") -> 125 | M9: =IFERROR(Таблица4[[#This Row],[v3]]+Таблица4[[#This Row],[после]],"") -> 21
A10: =IFERROR(A9+Таблица4[[#This Row],[до]]*10-(B9+Таблица4[[#This Row],[до]])*Таблица4[[#This Row],[низ]]+Таблица4[[#This Row],[после]]*10,100) -> 141 | B10: =IFERROR(B9+Таблица4[[#This Row],[до]]+Таблица4[[#This Row],[после]],10) -> 25 | C10: =Таблица4[[#This Row],[низ]] -> 1 | D10: =IF(Таблица4[[#This Row],[низ]]<>0,"да","нет") -> да | E10: 3 | F10: =IFERROR(A9+Таблица4[[#This Row],[до]]*10,"") -> 155 | G10: =IFERROR(B9+Таблица4[[#This Row],[до]],"") -> 24 | H10: 1 | I10: =IF(Таблица4[[#This Row],[низ]]=0,Таблица4[[#This Row],[s2]],(Таблица4[[#This Row],[s2]]-Таблица4[[#This Row],[v2]])*Таблица4[[#This Row],[низ]]) -> 131 | J10: =Таблица4[[#This Row],[v2]] -> 24 | K10: 1 | L10: =IFERROR(Таблица4[[#This Row],[s3]]+Таблица4[[#This Row],[после]]*10,"") -> 141 | M10: =IFERROR(Таблица4[[#This Row],[v3]]+Таблица4[[#This Row],[после]],"") -> 25
A11: =IFERROR(A10+Таблица4[[#This Row],[до]]*10-(B10+Таблица4[[#This Row],[до]])*Таблица4[[#This Row],[низ]]+Таблица4[[#This Row],[после]]*10,100) -> 125 | B11: =IFERROR(B10+Таблица4[[#This Row],[до]]+Таблица4[[#This Row],[после]],10) -> 26 | C11: =Таблица4[[#This Row],[низ]] -> 1 | D11: =IF(Таблица4[[#This Row],[низ]]<>0,"да","нет") -> да | E11: 1 | F11: =IFERROR(A10+Таблица4[[#This Row],[до]]*10,"") -> 151 | G11: =IFERROR(B10+Таблица4[[#This Row],[до]],"") -> 26 | H11: 1 | I11: =IF(Таблица4[[#This Row],[низ]]=0,Таблица4[[#This Row],[s2]],(Таблица4[[#This Row],[s2]]-Таблица4[[#This Row],[v2]])*Таблица4[[#This Row],[низ]]) -> 125 | J11: =Таблица4[[#This Row],[v2]] -> 26 | L11: =IFERROR(Таблица4[[#This Row],[s3]]+Таблица4[[#This Row],[после]]*10,"") -> 125 | M11: =IFERROR(Таблица4[[#This Row],[v3]]+Таблица4[[#This Row],[после]],"") -> 26
A12: =IFERROR(A11+Таблица4[[#This Row],[до]]*10-(B11+Таблица4[[#This Row],[до]])*Таблица4[[#This Row],[низ]]+Таблица4[[#This Row],[после]]*10,100) -> 99 | B12: =IFERROR(B11+Таблица4[[#This Row],[до]]+Таблица4[[#This Row],[после]],10) -> 26 | C12: =Таблица4[[#This Row],[низ]] -> 1 | D12: =IF(Таблица4[[#This Row],[низ]]<>0,"да","нет") -> да | F12: =IFERROR(A11+Таблица4[[#This Row],[до]]*10,"") -> 125 | G12: =IFERROR(B11+Таблица4[[#This Row],[до]],"") -> 26 | H12: 1 | I12: =IF(Таблица4[[#This Row],[низ]]=0,Таблица4[[#This Row],[s2]],(Таблица4[[#This Row],[s2]]-Таблица4[[#This Row],[v2]])*Таблица4[[#This Row],[низ]]) -> 99 | J12: =Таблица4[[#This Row],[v2]] -> 26 | L12: =IFERROR(Таблица4[[#This Row],[s3]]+Таблица4[[#This Row],[после]]*10,"") -> 99 | M12: =IFERROR(Таблица4[[#This Row],[v3]]+Таблица4[[#This Row],[после]],"") -> 26
A13: =IFERROR(A12+Таблица4[[#This Row],[до]]*10-(B12+Таблица4[[#This Row],[до]])*Таблица4[[#This Row],[низ]]+Таблица4[[#This Row],[после]]*10,100) -> 73 | B13: =IFERROR(B12+Таблица4[[#This Row],[до]]+Таблица4[[#This Row],[после]],10) -> 26 | C13: =Таблица4[[#This Row],[низ]] -> 1 | D13: =IF(Таблица4[[#This Row],[низ]]<>0,"да","нет") -> да | F13: =IFERROR(A12+Таблица4[[#This Row],[до]]*10,"") -> 99 | G13: =IFERROR(B12+Таблица4[[#This Row],[до]],"") -> 26 | H13: 1 | I13: =IF(Таблица4[[#This Row],[низ]]=0,Таблица4[[#This Row],[s2]],(Таблица4[[#This Row],[s2]]-Таблица4[[#This Row],[v2]])*Таблица4[[#This Row],[низ]]) -> 73 | J13: =Таблица4[[#This Row],[v2]] -> 26 | L13: =IFERROR(Таблица4[[#This Row],[s3]]+Таблица4[[#This Row],[после]]*10,"") -> 73 | M13: =IFERROR(Таблица4[[#This Row],[v3]]+Таблица4[[#This Row],[после]],"") -> 26
A14: =IFERROR(A13+Таблица4[[#This Row],[до]]*10-(B13+Таблица4[[#This Row],[до]])*Таблица4[[#This Row],[низ]]+Таблица4[[#This Row],[после]]*10,100) -> 47 | B14: =IFERROR(B13+Таблица4[[#This Row],[до]]+Таблица4[[#This Row],[после]],10) -> 26 | C14: =Таблица4[[#This Row],[низ]] -> 1 | D14: =IF(Таблица4[[#This Row],[низ]]<>0,"да","нет") -> да | F14: =IFERROR(A13+Таблица4[[#This Row],[до]]*10,"") -> 73 | G14: =IFERROR(B13+Таблица4[[#This Row],[до]],"") -> 26 | H14: 1 | I14: =IF(Таблица4[[#This Row],[низ]]=0,Таблица4[[#This Row],[s2]],(Таблица4[[#This Row],[s2]]-Таблица4[[#This Row],[v2]])*Таблица4[[#This Row],[низ]]) -> 47 | J14: =Таблица4[[#This Row],[v2]] -> 26 | L14: =IFERROR(Таблица4[[#This Row],[s3]]+Таблица4[[#This Row],[после]]*10,"") -> 47 | M14: =IFERROR(Таблица4[[#This Row],[v3]]+Таблица4[[#This Row],[после]],"") -> 26
A15: =IFERROR(A14+Таблица4[[#This Row],[до]]*10-(B14+Таблица4[[#This Row],[до]])*Таблица4[[#This Row],[низ]]+Таблица4[[#This Row],[после]]*10,100) -> 21 | B15: =IFERROR(B14+Таблица4[[#This Row],[до]]+Таблица4[[#This Row],[после]],10) -> 26 | C15: =Таблица4[[#This Row],[низ]] -> 1 | D15: =IF(Таблица4[[#This Row],[низ]]<>0,"да","нет") -> да | F15: =IFERROR(A14+Таблица4[[#This Row],[до]]*10,"") -> 47 | G15: =IFERROR(B14+Таблица4[[#This Row],[до]],"") -> 26 | H15: 1 | I15: =IF(Таблица4[[#This Row],[низ]]=0,Таблица4[[#This Row],[s2]],(Таблица4[[#This Row],[s2]]-Таблица4[[#This Row],[v2]])*Таблица4[[#This Row],[низ]]) -> 21 | J15: =Таблица4[[#This Row],[v2]] -> 26 | L15: =IFERROR(Таблица4[[#This Row],[s3]]+Таблица4[[#This Row],[после]]*10,"") -> 21 | M15: =IFERROR(Таблица4[[#This Row],[v3]]+Таблица4[[#This Row],[после]],"") -> 26
A17: s | B17: v | C17: t | D17: res
A18: 100 | B18: 10 | C18: 0
A19: 138 | B19: 15 | C19: 1 | O19: тут данные, которые у нас есть
A20: 148 | B20: 16 | C20: 0
A21: 141 | B21: 17 | C21: 1
A22: 124 | B22: 17 | C22: 1
A23: 146 | B23: 21 | C23: 1
A24: 125 | B24: 21 | C24: 1
A25: 73 | B25: 26 | C25: 4
A26: 47 | B26: 26 | C26: 1
A27: 21 | B27: 26 | C27: 1
